fUSD/lending_fUSD_20240118
["ID","MTS","AMOUNT","RATE_DAILY","PERIOD"]
[311997630,1705537841324,-560.41,0.00022361,2]
[311997632,1705537841333,-512.3256881,0.00022361,2]
[311997634,1705537841342,-500.0,0.00022361,2]
[311997636,1705537841351,-500.0,0.00022361,2]
[311997638,1705537841360,-500.0,0.00022361,2]
[311997640,1705537841370,-500.0,0.00022361,2]
[311997642,1705537841379,-175.66520491,0.00022362,3]
[311997644,1705537841388,-500.0,0.00022362,2]
[311997646,1705537841397,-500.0,0.00022362,2]
[311997648,1705537841406,-500.0,0.00022362,2]
[311997650,1705537841416,-500.0,0.00022362,2]
[311997652,1705537841425,-500.0,0.00022362,2]
[311997654,1705537841433,-500.0,0.00022362,2]
[311997656,1705537841443,-500.0,0.00022362,7]
[311997658,1705537841452,-511.80371143,0.00022362,2]
[311997660,1705537841461,-500.0,0.00022362,2]
[311997662,1705537841470,-500.0,0.00022362,2]
[311997664,1705537841480,-515.86,0.00022362,2]
[311997666,1705537841489,-490.58765589,0.00022362,2]
[311997668,1705537841498,-500.0,0.00022362,2]
[311997670,1705537841508,-500.0,0.00022362,2]
[311997672,1705537841518,-500.0,0.00022362,2]
[311997674,1705537841527,-500.0,0.00022362,2]
[311997676,1705537841536,-500.0,0.00022362,2]
[311997678,1705537841545,-500.0,0.00022362,2]
[311997680,1705537841555,-255.08,0.00022362,2]
[311997682,1705537841564,-342.69,0.00022362,2]
[311997684,1705537841575,-431.4502789,0.00022362,2]
[311997687,1705537841593,-68.5497211,0.00022362,2]
[311997689,1705537841602,-295.58849992,0.00022362,2]
[311997691,1705537841614,-204.41150008,0.00022362,2]
[311997693,1705537841623,-500.0,0.00022362,2]
[311997695,1705537841632,-50.72414712,0.00022362,2]
[311997697,1705537841644,-703.41585288,0.00022362,2]
[311997699,1705537841653,-379.83290341,0.00022362,2]
[311997719,1705537841828,-120.16709659,0.00022362,2]
[311997721,1705537841837,-160.97625615,0.00022362,2]
[311997724,1705537841853,-339.02374385,0.00022362,2]
[311997726,1705537841863,-438.97625605,0.00022362,2]
[311997733,1705537841913,-500.0,0.00022361,2]
[311997735,1705537841922,-1.23374395,0.00022362,2]
[311997737,1705537841931,-500.0,0.00022362,2]
[311997738,1705537841941,-500.0,0.00022362,2]
[311997741,1705537841950,-1292.39,0.00022362,2]
[311997743,1705537841960,-500.0,0.00022362,2]
[311997744,1705537841968,-500.0,0.00022362,2]
[311997747,1705537841979,-500.0,0.00022362,2]
[311997749,1705537841989,-650.21,0.00022362,2]
[311997751,1705537841998,-500.0,0.00022362,2]
[311997752,1705537842007,-500.0,0.00022362,2]
[311997754,1705537842016,-500.0,0.00022362,2]
[311997756,1705537842025,-526.23,0.00022362,2]
[311997758,1705537842034,-500.0,0.00022362,2]
[311997761,1705537842045,-500.0,0.00022362,2]
[311997763,1705537842054,-500.0,0.00022362,2]
[311997765,1705537842063,-500.0,0.00022362,2]
[311997766,1705537842072,-500.0,0.00022362,2]
[311997768,1705537842081,-500.0,0.00022362,2]
[311997770,1705537842090,-945.32,0.00022362,2]
[311997773,1705537842099,-500.0,0.00022362,2]
[311997775,1705537842109,-500.0,0.00022362,2]
[311997777,1705537842118,-4256.71,0.00022362,2]
[311997779,1705537842127,-500.0,0.00022362,2]
[311997780,1705537842136,-500.0,0.00022362,2]
[311997783,1705537842145,-500.0,0.00022362,2]
[311997784,1705537842154,-1535.71,0.00022362,2]
[311997786,1705537842163,-653.86,0.00022362,2]
[311997789,1705537842172,-500.0,0.00022362,2]
[311997790,1705537842181,-500.0,0.00022362,2]
[311997792,1705537842190,-525.61,0.00022362,2]
[311997794,1705537842199,-500.0,0.00022362,2]
[311997797,1705537842209,-500.0,0.00022362,2]
[311997799,1705537842218,-647.41,0.00022362,2]
[311997800,1705537842229,-500.0,0.00022362,2]
[311997801,1705537842238,-500.0,0.00022362,2]
[311997802,1705537842246,-500.0,0.00022362,2]
[311997803,1705537842255,-500.0,0.00022362,2]
[311997804,1705537842265,-500.0,0.00022362,2]
[311997805,1705537842274,-500.0,0.00022362,2]
[311997806,1705537842283,-536.38,0.00022362,2]
[311997808,1705537842292,-500.0,0.00022362,2]
[311997810,1705537842301,-500.0,0.00022362,2]
[311997812,1705537842310,-166.61575528,0.00022362,2]
[311997814,1705537842319,-500.0,0.00022362,2]
[311997815,1705537842327,-642.66,0.00022362,2]
[311997816,1705537842336,-500.0,0.00022362,2]
[311997817,1705537842345,-500.0,0.00022362,2]
[311997818,1705537842354,-500.0,0.00022362,2]
[311997819,1705537842363,-500.0,0.00022362,2]
[311997820,1705537842372,-500.0,0.00022362,2]
[311997821,1705537842382,-557.92,0.00022362,2]
[311997822,1705537842391,-859.41,0.00022362,2]
[311997823,1705537842400,-500.0,0.00022362,2]
[311997824,1705537842409,-500.0,0.00022362,2]
[311997826,1705537842418,-500.0,0.00022362,2]
[311997827,1705537842427,-1249.15,0.00022362,2]
[311997828,1705537842436,-954.69,0.00022362,2]
[311997829,1705537842445,-500.0,0.00022362,2]
[311997830,1705537842454,-1910.6,0.00022362,2]
[311997831,1705537842463,-520.2030468,0.00022362,2]
[311997832,1705537842472,-916.45,0.00022362,2]
[311997834,1705537842482,-500.0,0.00022362,2]
[311997836,1705537842491,-500.0,0.00022362,2]
[311997838,1705537842499,-500.0,0.00022362,2]
[311997840,1705537842508,-1699.64,0.00022362,2]
[311997841,1705537842517,-500.0,0.00022362,2]
[311997843,1705537842527,-500.0,0.00022362,2]
[311997845,1705537842536,-1125.62,0.00022362,2]
[311997846,1705537842545,-65.44992937,0.00022362,2]
[311997847,1705537842570,-840.10007063,0.00022362,2]
[311997848,1705537842579,-362.63380713,0.00022362,2]
[311997849,1705537842589,-26.80443069,0.00022362,2]
[311997850,1705537842600,-473.19556931,0.00022362,2]
[311997851,1705537842610,-500.0,0.00022362,2]
[311997852,1705537842619,-500.0,0.00022362,2]
[311997853,1705537842628,-232.13571633,0.00022362,2]
[311997854,1705537842641,-267.86428367,0.00022362,2]
[311997855,1705537842650,-26.49882942,0.00022362,2]
[311997856,1705537842672,-582.81063799,0.00022362,2]
[311997857,1705537842683,-1.67053259,0.00022362,2]
[311997858,1705537842692,-741.32946741,0.00022362,2]
[311997886,1705537843232,-664.5663554,0.00022362,2]
[311997890,1705537843344,-16.42417719,0.00022362,2]
[311997891,1705537843353,-355.45444286,0.00022362,2]
[311997892,1705537843365,-362.65555714,0.00022362,2]
[311997893,1705537843373,-362.02908304,0.00022362,2]
[311997894,1705537843385,-137.97091696,0.00022362,2]
[311997895,1705537843394,-248.06452834,0.00022362,2]
[311997896,1705537843452,-500.0,0.00022361,2]
[311997897,1705537843461,-251.93547166,0.00022362,2]
[311997898,1705537843470,-404.94376116,0.00022362,2]
[311997899,1705537843490,-750.85623884,0.00022362,2]
[311997900,1705537843499,-444.66,0.00022362,2]
[311997901,1705537843508,-174.02292783,0.00022362,2]
[311997902,1705537843517,-572.32540294,0.00022362,2]
[311997903,1705537843526,-431.54,0.00022362,2]
[311997904,1705537843535,-500.0,0.00022362,2]
[311997905,1705537843544,-500.0,0.00022362,2]
[311997906,1705537843554,-1173.73,0.00022362,2]
[311997907,1705537843564,-500.0,0.00022362,2]
[311997908,1705537843574,-500.0,0.00022362,2]
[311997909,1705537843583,-509.57658557,0.00022362,2]
[311997910,1705537843592,-500.0,0.00022363,2]
[311997911,1705537843602,-500.0,0.00022363,2]
[311997912,1705537843611,-500.0,0.00022363,2]
[311997914,1705537843620,-500.0,0.00022363,2]
[311997915,1705537843630,-500.0,0.00022363,2]
[311997916,1705537843639,-1088.8,0.00022363,2]
[311997917,1705537843648,-500.0,0.00022363,2]
[311997918,1705537843658,-921.56,0.00022363,2]
[311997919,1705537843667,-500.0,0.00022363,2]
[311997920,1705537843676,-500.0,0.00022363,2]
[311997921,1705537843685,-500.0,0.00022363,2]
[311997922,1705537843694,-340.41564999,0.00022363,2]
[311997923,1705537843703,-500.0,0.00022363,2]
[311997924,1705537843712,-500.0,0.00022363,2]
[311997925,1705537843722,-540.16,0.00022363,2]
[311997926,1705537843730,-209.94668331,0.00022363,2]
[311997927,1705537843739,-292.40331863,0.00022363,2]
[311997928,1705537843748,-500.0,0.00022363,2]
[311997929,1705537843757,-500.0,0.00022363,2]
[311997930,1705537843766,-500.0,0.00022363,2]
[311997931,1705537843777,-500.0,0.00022363,2]
[311997932,1705537843786,-500.0,0.00022363,2]
[311997933,1705537843795,-526.46187395,0.00022363,2]
[311997934,1705537843804,-500.0,0.00022363,2]
[311997935,1705537843813,-500.0,0.00022363,2]
[311997936,1705537843822,-639.26,0.00022363,2]
[311997937,1705537843831,-500.0,0.00022363,2]
[311997938,1705537843840,-593.73081092,0.00022363,2]
[311997939,1705537843849,-500.0,0.00022363,2]
[311997940,1705537843858,-500.0,0.00022363,2]
[311997941,1705537843867,-500.0,0.00022363,2]
[311997942,1705537843877,-310.5,0.00022363,2]
[311997943,1705537843886,-500.0,0.00022363,2]
[311997944,1705537843895,-500.0,0.00022363,2]
[311997945,1705537843904,-500.0,0.00022363,2]
[311997946,1705537843913,-500.0,0.00022363,2]
[311997947,1705537843923,-500.0,0.00022363,2]
[311997948,1705537843932,-500.0,0.00022363,2]
[311997949,1705537843941,-500.0,0.00022363,2]
[311997950,1705537843950,-500.0,0.00022363,2]
[311997951,1705537843959,-500.0,0.00022363,2]
[311997952,1705537843968,-500.0,0.00022363,2]
[311997953,1705537843978,-500.0,0.00022363,2]
[311997954,1705537843987,-500.0,0.00022363,2]
[311997955,1705537843997,-500.0,0.00022363,2]
[311997956,1705537844006,-500.0,0.00022363,2]
[311997957,1705537844015,-500.0,0.00022363,2]
[311997958,1705537844024,-500.0,0.00022363,2]
[311997959,1705537844034,-500.0,0.00022363,2]
[311997960,1705537844043,-500.0,0.00022363,2]
[311997961,1705537844052,-500.0,0.00022363,2]
[311997962,1705537844062,-500.0,0.00022363,2]
[311997963,1705537844072,-543.73,0.00022363,2]
[311997964,1705537844082,-500.0,0.00022363,2]
[311997965,1705537844091,-622.02,0.00022363,2]
[311997966,1705537844101,-500.0,0.00022363,2]
[311997967,1705537844110,-500.0,0.00022363,2]
[311997968,1705537844120,-500.0,0.00022363,2]
[311997969,1705537844130,-500.0,0.00022363,2]
[311997970,1705537844139,-500.0,0.00022363,2]
[311997971,1705537844148,-500.0,0.00022363,2]
[311997972,1705537844157,-500.0,0.00022363,2]
[311997973,1705537844166,-500.0,0.00022363,2]
[311997974,1705537844175,-500.0,0.00022363,2]
[311997975,1705537844184,-293.59,0.00022363,2]
[311997976,1705537844194,-500.0,0.00022363,2]
[311997977,1705537844203,-539.15,0.00022363,2]
[311997978,1705537844213,-500.0,0.00022363,2]
[311997979,1705537844222,-620.43,0.00022363,2]
[311997980,1705537844231,-518.88,0.00022363,2]
[311997981,1705537844240,-500.0,0.00022363,2]
[311997982,1705537844249,-500.0,0.00022363,2]
[311997983,1705537844258,-500.0,0.00022363,2]
[311997984,1705537844268,-500.0,0.00022363,2]
[311997985,1705537844277,-500.0,0.00022363,2]
[311997986,1705537844287,-505.69114264,0.00022363,2]
[311997987,1705537844296,-500.0,0.00022363,2]
[311997988,1705537844306,-500.0,0.00022363,2]
[311997989,1705537844315,-500.0,0.00022363,2]
[311997990,1705537844324,-500.0,0.00022363,2]
[311997991,1705537844333,-500.0,0.00022363,2]
[311997992,1705537844344,-500.0,0.00022363,2]
[311997993,1705537844359,-500.0,0.00022363,2]
[311997994,1705537844378,-500.0,0.00022363,2]
[311997995,1705537844387,-500.0,0.00022363,2]
[311997996,1705537844397,-500.0,0.00022363,2]
[311997997,1705537844406,-611.0,0.00022363,2]
[311997998,1705537844416,-500.0,0.00022363,2]
[311997999,1705537844425,-639.51956984,0.00022363,2]
[311998000,1705537844434,-500.0,0.00022363,2]
[311998001,1705537844444,-500.0,0.00022363,2]
[311998002,1705537844453,-500.0,0.00022364,2]
[311998003,1705537844462,-500.0,0.00022364,2]
[311998004,1705537844472,-500.0,0.00022364,2]
[311998005,1705537844481,-500.0,0.00022364,2]
[311998006,1705537844490,-224.33,0.00022364,2]
[311998007,1705537844500,-500.0,0.00022364,2]
[311998008,1705537844510,-500.0,0.00022364,2]
[311998009,1705537844519,-333.25,0.00022364,2]
[311998010,1705537844529,-362.29,0.00022366,2]
[311998011,1705537844538,-264.58511852,0.00022367,2]
[311998012,1705537844547,-158.03,0.00022373,2]
[311998013,1705537844558,-150.98,0.00022379,2]
[311998014,1705537844572,-200.0,0.00022397,2]
[311998015,1705537844582,-250.0,0.000224,2]
[311998016,1705537844593,-495.58950919,0.00022411,2]
[311998017,1705537844602,-155.63,0.00022427,2]
[311998018,1705537844612,-800.0,0.00022453,2]
[311998019,1705537844622,-19652.0,0.00022459,2]
[311998020,1705537844631,-2692.425,0.00022459,2]
[311998021,1705537844640,-5191.0,0.00022459,2]
[311998022,1705537844650,-263.463,0.00022459,2]
[311998023,1705537844660,-1357.0,0.00022459,2]
[311998024,1705537844669,-2267.0,0.00022459,2]
[311998025,1705537844679,-308.451,0.00022459,2]
[311998026,1705537844689,-250.961,0.00022459,2]
[311998027,1705537844698,-836.0,0.00022459,2]
[311998028,1705537844707,-1854.0,0.00022459,2]
[311998029,1705537844717,-946.0,0.00022459,2]
[311998030,1705537844727,-458.74,0.00022459,2]
[311998031,1705537844737,-1249.0,0.00022459,2]
[311998032,1705537844746,-500.0,0.00022464,2]
[311998033,1705537844755,-158.61,0.00022485,2]
[311998034,1705537844764,-153.31,0.00022487,2]
[311998035,1705537844774,-2000.0,0.00022499,2]
[311998036,1705537844786,-200.0,0.00022499,2]
[311998037,1705537844976,-19956.93808517,0.000225,2]
[311998038,1705537844986,-12238.12948093,0.000225,2]
[311998039,1705537844996,-1147.0,0.00022505,2]
[311998040,1705537845006,-150.0,0.00022505,2]
[311998041,1705537845015,-150.134,0.00022505,2]
[311998042,1705537845025,-150.0,0.00022505,2]
[311998043,1705537845034,-150.0,0.00022505,2]
[311998044,1705537845043,-290.039,0.00022505,2]
[311998045,1705537845052,-150.0,0.00022505,2]
[311998046,1705537845061,-200.0,0.00022534,2]
[311998047,1705537845070,-188.5945484,0.00022536,2]
[311998048,1705537845080,-176.27,0.00022548,2]
[311998049,1705537845090,-159.79,0.00022564,2]
[311998050,1705537845099,-1143.1,0.00022572,2]
[311998051,1705537845109,-150.0,0.00022616,2]
[311998052,1705537845119,-356.4008579,0.00022626,2]
[311998053,1705537845128,-461.79828775,0.00022633,2]
[311998054,1705537845137,-155.41046091,0.00022633,2]
[311998055,1705537845148,-1040.28791122,0.00022634,2]
[311998056,1705537845157,-156.24527716,0.00022635,2]
[311998057,1705537845166,-298.58,0.00022635,2]
[311998058,1705537845175,-500.0,0.00022635,2]
[311998059,1705537845185,-342.54,0.00022635,2]
[311998060,1705537845194,-500.0,0.00022635,2]
[311998061,1705537845203,-452.01,0.00022635,2]
[311998062,1705537845212,-500.0,0.00022635,2]
[311998063,1705537845221,-258.56,0.00022635,2]
[311998064,1705537845232,-500.0,0.00022635,2]
[311998065,1705537845241,-500.0,0.00022635,2]
[311998066,1705537845251,-500.0,0.00022635,2]
[311998067,1705537845260,-540.13,0.00022635,2]
[311998068,1705537845269,-500.0,0.00022635,2]
[311998069,1705537845278,-500.0,0.00022635,2]
[311998070,1705537845288,-500.0,0.00022635,2]
[311998071,1705537845297,-500.0,0.00022635,2]
[311998072,1705537845306,-500.0,0.00022635,2]
[311998073,1705537845317,-500.0,0.00022635,2]
[311998074,1705537845326,-500.0,0.00022635,2]
[311998075,1705537845336,-3527.91,0.00022635,2]
[311998076,1705537845345,-500.0,0.00022635,2]
[311998077,1705537845354,-500.0,0.00022635,2]
[311998078,1705537845363,-500.0,0.00022635,2]
[311998079,1705537845373,-500.0,0.00022635,2]
[311998080,1705537845382,-500.0,0.00022635,2]
[311998081,1705537845391,-500.0,0.00022635,2]
[311998082,1705537845400,-500.0,0.00022635,2]
[311998083,1705537845409,-2808.37,0.00022635,2]
[311998084,1705537845419,-500.0,0.00022635,2]
[311998085,1705537845428,-500.0,0.00022635,2]
[311998086,1705537845437,-500.0,0.00022635,2]
[311998087,1705537845446,-500.0,0.00022635,2]
[311998088,1705537845456,-500.0,0.00022635,2]
[311998089,1705537845465,-500.0,0.00022635,2]
[311998090,1705537845474,-1004.45,0.00022635,2]
[311998091,1705537845483,-500.0,0.00022635,2]
[311998092,1705537845492,-878.88,0.00022635,2]
[311998093,1705537845501,-934.56,0.00022635,2]
[311998094,1705537845511,-442.21,0.00022635,2]
[311998095,1705537845521,-500.0,0.00022635,2]
[311998096,1705537845530,-500.0,0.00022635,2]
[311998097,1705537845540,-500.0,0.00022635,2]
[311998098,1705537845549,-500.0,0.00022635,2]
[311998099,1705537845559,-500.0,0.00022635,2]
[311998100,1705537845571,-4767.07,0.00022635,2]
[311998101,1705537845580,-500.0,0.00022635,2]
[311998102,1705537845590,-500.0,0.00022635,2]
[311998103,1705537845599,-500.0,0.00022635,2]
[311998104,1705537845610,-500.0,0.00022635,2]
[311998105,1705537845619,-500.0,0.00022635,2]
[311998106,1705537845629,-643.75,0.00022635,2]
[311998107,1705537845639,-500.0,0.00022635,2]
[311998108,1705537845648,-500.0,0.00022635,2]
[311998109,1705537845658,-500.0,0.00022635,2]
[311998110,1705537845668,-500.0,0.00022635,2]
[311998111,1705537845677,-500.0,0.00022635,2]
[311998112,1705537845687,-836.7,0.00022635,2]
[311998113,1705537845697,-500.0,0.00022635,2]
[311998114,1705537845707,-500.0,0.00022635,2]
[311998115,1705537845717,-500.0,0.00022635,2]
[311998116,1705537845728,-500.0,0.00022635,2]
[311998117,1705537845737,-500.0,0.00022635,2]
[311998118,1705537845747,-500.0,0.00022635,2]
[311998119,1705537845756,-675.92,0.00022635,2]
[311998120,1705537845765,-1577.17,0.00022635,5]
[311998121,1705537845775,-655.01,0.00022635,2]
[311998122,1705537845784,-1978.75,0.00022635,2]
[311998123,1705537845794,-500.0,0.00022635,2]
[311998124,1705537845803,-500.0,0.00022635,2]
[311998125,1705537845813,-500.0,0.00022635,2]
[311998126,1705537845822,-500.0,0.00022635,2]
[311998127,1705537845831,-2775.85,0.00022635,2]
[311998128,1705537845840,-500.0,0.00022635,5]
[311998129,1705537845849,-500.0,0.00022635,2]
[311998130,1705537845859,-500.0,0.00022635,2]
[311998131,1705537845868,-2246.4,0.00022635,2]
[311998132,1705537845877,-720.72,0.00022635,2]
[311998133,1705537845886,-500.0,0.00022635,2]
[311998134,1705537845895,-844.07,0.00022635,2]
[311998135,1705537845905,-500.0,0.00022635,2]
[311998136,1705537845914,-155.59249893,0.00022635,2]
[311998137,1705537845924,-560.41,0.00022635,2]
[311998138,1705537845933,-371.98469094,0.00022636,2]
[311998139,1705537845942,-500.0,0.00022636,7]
[311998140,1705537845951,-480.0,0.00022636,2]
[311998141,1705537845961,-624.12,0.00022636,2]
[311998142,1705537845970,-500.0,0.00022636,2]
[311998143,1705537845982,-228.12,0.00022636,2]
[311998144,1705537845991,-577.29,0.00022636,2]
[311998145,1705537846000,-500.0,0.00022636,2]
[311998146,1705537846009,-500.0,0.00022636,2]
[311998147,1705537846019,-500.0,0.00022636,2]
[311998148,1705537846028,-500.0,0.00022636,2]
[311998149,1705537846037,-1292.39,0.00022636,2]
[311998150,1705537846046,-500.0,0.00022636,2]
[311998151,1705537846055,-500.0,0.00022636,2]
[311998153,1705537846065,-650.21,0.00022636,2]
[311998155,1705537846074,-526.23,0.00022636,2]
[311998157,1705537846083,-500.0,0.00022636,2]
[311998159,1705537846092,-500.0,0.00022636,2]
[311998161,1705537846101,-500.0,0.00022636,2]
[311998163,1705537846111,-500.0,0.00022636,2]
[311998165,1705537846120,-500.0,0.00022636,2]
[311998167,1705537846130,-500.0,0.00022636,2]
[311998169,1705537846139,-945.32,0.00022636,2]
[311998171,1705537846148,-500.0,0.00022636,2]
[311998173,1705537846157,-500.0,0.00022636,2]
[311998175,1705537846166,-4256.71,0.00022636,2]
[311998177,1705537846175,-500.0,0.00022636,2]
[311998179,1705537846184,-500.0,0.00022636,2]
[311998181,1705537846192,-1535.71,0.00022636,2]
[311998183,1705537846201,-653.86,0.00022636,2]
[311998185,1705537846210,-500.0,0.00022636,2]
[311998187,1705537846219,-500.0,0.00022636,2]
[311998189,1705537846230,-525.61,0.00022636,2]
[311998191,1705537846239,-393.22,0.00022636,2]
[311998193,1705537846248,-647.41,0.00022636,2]
[311998195,1705537846257,-500.0,0.00022636,2]
[311998197,1705537846266,-500.0,0.00022636,2]
[311998199,1705537846275,-500.0,0.00022636,2]
[311998201,1705537846284,-342.95,0.00022636,2]
[311998203,1705537846293,-536.38,0.00022636,2]
[311998205,1705537846303,-500.0,0.00022636,2]
[311998207,1705537846312,-642.66,0.00022636,2]
[311998210,1705537846321,-500.0,0.00022636,2]
[311998212,1705537846330,-500.0,0.00022636,2]
[311998214,1705537846340,-500.0,0.00022636,2]
[311998216,1705537846352,-500.0,0.00022636,2]
[311998218,1705537846362,-500.0,0.00022636,2]
[311998220,1705537846371,-859.41,0.00022636,2]
[311998222,1705537846380,-500.0,0.00022636,2]
[311998224,1705537846389,-500.0,0.00022636,2]
[311998226,1705537846398,-1249.15,0.00022636,2]
[311998228,1705537846407,-954.69,0.00022636,2]
[311998230,1705537846416,-1910.6,0.00022636,2]
[311998232,1705537846426,-916.45,0.00022636,2]
[311998234,1705537846435,-500.0,0.00022636,2]
[311998236,1705537846444,-500.0,0.00022636,2]
[311998238,1705537846454,-1699.64,0.00022636,2]
[311998240,1705537846463,-500.0,0.00022636,2]
[311998242,1705537846473,-1125.62,0.00022636,2]
[311998244,1705537846482,-905.55,0.00022636,2]
[311998246,1705537846492,-500.0,0.00022636,2]
[311998248,1705537846502,-500.0,0.00022636,2]
[311998250,1705537846511,-500.0,0.00022636,2]
[311998252,1705537846521,-500.0,0.00022636,2]
[311998254,1705537846530,-610.98,0.00022636,2]
[311998256,1705537846539,-1422.32,0.00022636,2]
[311998258,1705537846549,-718.11,0.00022636,2]
[311998260,1705537846559,-500.0,0.00022636,2]
[311998262,1705537846571,-1155.8,0.00022636,2]
[311998264,1705537846580,-1173.73,0.00022636,2]
[311998266,1705537846589,-500.0,0.00022636,2]
[311998269,1705537846599,-18.32386296,0.00022637,2]
[311998305,1705537846905,-155.0,0.00018705,2]
[311998307,1705537846914,-128.7162531,0.00022361,2]
[311998309,1705537846925,-347.61572832,0.00022361,2]
[311998311,1705537846937,-267.21801858,0.00022361,2]
[311998313,1705537846947,-12.9930143,0.00022361,2]
[311998315,1705537846962,-479.80109008,0.00022361,2]
[311998318,1705537846973,-7.20589562,0.00022361,2]
[311998320,1705537846983,-500.0,0.00022361,2]
[311998322,1705537846992,-743.55,0.00022635,2]
[311998324,1705537847001,-318.79255462,0.00022637,2]
[311998326,1705537847010,-156.99484174,0.00022637,2]
[311998328,1705537847022,-4639.4,0.00022637,2]
[311998332,1705537847051,-587.75430259,0.00022637,2]
[311998334,1705537847061,-736.48501665,0.00022637,2]
[311998335,1705537847073,-1297.13033065,0.00022637,2]
[311998336,1705537847084,-1180.35140789,0.00022637,2]
[311998362,1705538913779,204.0,0.00017718,2]
[311998369,1705538965111,-2274.4341,0.00018725,2]
[311998372,1705539031358,-2973.66988191,0.00018725,2]
[311998373,1705539031370,-194.60140945,0.00018725,2]
[311998374,1705539031379,-150.0,0.00018725,2]
[311998375,1705539031389,-150.0,0.00018725,2]
[311998376,1705539031398,-150.0,0.00018725,2]
[311998377,1705539031407,-150.0,0.00018725,2]
[311998378,1705539031419,-150.0,0.00018725,2]
[311998379,1705539031428,-113.41763986,0.00018725,2]
[311998380,1705539031440,-36.58236014,0.00018725,2]
[311998381,1705539031449,-150.0,0.00018725,2]
[311998382,1705539031459,-150.0,0.00018725,2]
[311998383,1705539031468,-150.0,0.00018725,2]
[311998384,1705539031478,-150.0,0.00018725,2]
[311998385,1705539031487,-261.11940098,0.00018725,2]
[311998386,1705539031500,-643.07,0.00018726,2]
[311998387,1705539031510,-162.73746241,0.00019898,2]
[311998388,1705539031521,-150.0,0.00019999,2]
[311998389,1705539031531,-2475.29256209,0.0002,2]
[311998390,1705539031541,-155.0,0.0002,2]
[311998391,1705539031551,-196.26,0.00020254,2]
[311998392,1705539031560,-1154.62,0.00020329,2]
[311998393,1705539031569,-202.33,0.00020329,2]
[311998394,1705539031579,-150.0,0.00020329,2]
[311998395,1705539031589,-623.94741812,0.00020367,2]
[311998396,1705539031598,-162.18,0.00020456,2]
[311998397,1705539031607,-1116.15,0.00020558,2]
[311998398,1705539031616,-160.17,0.00020582,10]
[311998399,1705539031625,-2000.0,0.00020588,2]
[311998400,1705539031634,-1060.91,0.00020591,2]
[311998401,1705539031644,-536.86,0.00020612,2]
[311998402,1705539031654,-204.0,0.00020738,6]
[311998403,1705539031663,-154.91,0.00020744,2]
[311998404,1705539031672,-463.14,0.00020811,2]
[311998405,1705539031681,-152.68,0.00020839,2]
[311998406,1705539031690,-643.07,0.0002099,2]
[311998407,1705539031699,-158.38,0.0002099,2]
[311998408,1705539031708,-685.97,0.00021005,2]
[311998409,1705539031717,-152.68,0.0002102,2]
[311998410,1705539031727,-4926.24,0.00021148,2]
[311998411,1705539031736,-499.99,0.00021148,2]
[311998412,1705539031746,-154.91,0.00021159,2]